bitfinex/quotes_BTCUSD_20250614
["timestamp","ask_amount","ask_price","bid_price","bid_amount"]
[1749937117359,0.56080717,105280.0,105270.0,0.51306552]
[1749937117571,1.17068438,105280.0,105270.0,0.51306552]
[1749937118029,1.16399711,105280.0,105270.0,0.51306552]
[1749937118263,1.17068438,105280.0,105270.0,0.51306552]
[1749937118497,1.16399711,105280.0,105270.0,0.51306552]
[1749937118744,1.17068438,105280.0,105270.0,0.51306552]
[1749937119195,1.16399711,105280.0,105270.0,0.51306552]
[1749937119404,1.17068438,105280.0,105270.0,0.51306552]
[1749937119615,1.16399711,105280.0,105270.0,0.51306552]
[1749937120244,1.17068439,105280.0,105270.0,0.51306552]
[1749937120889,1.16399711,105280.0,105270.0,0.51306552]
[1749937121103,1.17068439,105280.0,105270.0,0.51306552]
[1749937122200,1.17068259,105280.0,105270.0,0.51306552]
[1749937122613,1.17068259,105280.0,105270.0,0.50356632]
[1749937122820,1.1611842,105280.0,105270.0,0.50356632]
[1749937123025,1.15449872,105280.0,105270.0,0.50356632]
[1749937123413,1.16118421,105280.0,105270.0,0.50356632]
[1749937123652,1.15449872,105280.0,105270.0,0.50356632]
[1749937123858,1.16118421,105280.0,105270.0,0.50356632]
[1749937124064,1.15449872,105280.0,105270.0,0.50356632]
[1749937124273,1.16118421,105280.0,105270.0,0.50356632]
[1749937124486,1.15449872,105280.0,105270.0,0.50356632]
[1749937124903,1.25733343,105280.0,105270.0,0.50356632]
[1749937125115,1.25064794,105280.0,105270.0,0.50356632]
[1749937125537,1.25733343,105280.0,105270.0,0.49406703]
[1749937125752,0.64745622,105280.0,105270.0,0.49406703]
[1749937125974,1.25733343,105280.0,105270.0,0.49406703]
[1749937126376,1.25064794,105280.0,105270.0,0.49406703]
[1749937126612,1.25733343,105280.0,105270.0,0.49406703]
[1749937126840,1.25064794,105280.0,105270.0,0.49406703]
[1749937127470,1.25733343,105280.0,105270.0,0.49406703]
[1749937127677,1.25064794,105280.0,105270.0,0.49406703]
[1749937128100,1.25733343,105280.0,105270.0,0.49406703]
[1749937128356,1.25733343,105280.0,105270.0,0.29458]
[1749937128985,0.54462151,105280.0,105270.0,0.29458]
[1749937129222,1.15449872,105280.0,105270.0,0.29458]
[1749937129649,1.16118422,105280.0,105270.0,0.29458]
[1749937130070,0.5513088,105280.0,105270.0,0.29458]
[1749937130275,1.16118601,105280.0,105270.0,0.29458]
[1749937130486,1.15449872,105280.0,105270.0,0.29458]
[1749937130700,1.16118601,105280.0,105270.0,0.29458]
[1749937130911,1.15449872,105280.0,105270.0,0.29458]
[1749937131347,1.16118601,105280.0,105270.0,0.29458]
[1749937132032,1.15449872,105280.0,105270.0,0.29458]
[1749937132235,1.16118601,105280.0,105270.0,0.29458]
[1749937132668,1.15449872,105280.0,105270.0,0.29458]
[1749937132878,1.16118601,105280.0,105270.0,0.29458]
[1749937133098,1.15449872,105280.0,105270.0,0.29458]
[1749937133310,1.16118601,105280.0,105270.0,0.29458]
[1749937133732,1.25064794,105280.0,105270.0,0.29458]
[1749937133950,1.25733523,105280.0,105270.0,0.29458]
[1749937135333,1.25733512,105280.0,105270.0,0.29458]
[1749937135537,1.25064794,105280.0,105270.0,0.29458]
[1749937135742,1.25733513,105280.0,105270.0,0.29458]
[1749937135965,1.25733514,105280.0,105270.0,0.29458]
[1749937136390,1.25733511,105280.0,105270.0,0.29458]
[1749937136597,1.25733517,105280.0,105270.0,0.29458]
[1749937136804,1.25733515,105280.0,105270.0,0.29458]
[1749937137006,1.25064794,105280.0,105270.0,0.29458]
[1749937137620,1.25733524,105280.0,105270.0,0.29458]
[1749937137849,1.25733525,105280.0,105270.0,0.29458]
[1749937138266,1.25064794,105280.0,105270.0,0.29458]
[1749937138478,1.25733525,105280.0,105270.0,0.29458]
[1749937138917,1.25733524,105280.0,105270.0,0.29458]
[1749937139855,1.25064794,105280.0,105270.0,0.29458]
[1749937140073,1.25733524,105280.0,105270.0,0.29458]
[1749937140293,1.25064794,105280.0,105270.0,0.29458]
[1749937140499,1.25733524,105280.0,105270.0,0.29458]
[1749937140713,1.25064794,105280.0,105270.0,0.1389]
[1749937140937,1.25064794,105280.0,105270.0,0.29446]
[1749937141361,1.25733525,105280.0,105270.0,0.29446]
[1749937141563,1.25064794,105280.0,105270.0,0.29446]
[1749937141773,1.25733525,105280.0,105270.0,0.29446]
[1749937142419,1.25064794,105280.0,105270.0,0.23556]
[1749937142629,1.25733524,105280.0,105270.0,0.23556]
[1749937142838,1.25064794,105280.0,105270.0,0.23556]
[1749937143429,1.25733525,105280.0,105270.0,0.23556]
[1749937143677,1.25064794,105280.0,105270.0,0.26436]
[1749937143880,1.25733525,105280.0,105270.0,0.26436]
[1749937144082,1.25733526,105280.0,105270.0,0.26436]
[1749937144792,1.25064794,105280.0,105270.0,0.29046]
[1749937145403,1.25733526,105280.0,105270.0,0.29046]
[1749937146018,1.25064794,105280.0,105270.0,0.29046]
[1749937146169,1.25733526,105280.0,105270.0,0.29046]
[1749937146783,1.25064794,105280.0,105270.0,0.29046]
[1749937146993,1.25733526,105280.0,105270.0,0.29046]
[1749937148607,1.25064863,105280.0,105270.0,0.29046]
[1749937148739,1.25064862,105280.0,105270.0,0.29046]
[1749937148932,1.25064721,105280.0,105270.0,0.29046]
[1749937149603,1.24396131,105280.0,105270.0,0.29046]
[1749937149802,1.25064721,105280.0,105270.0,0.29046]
[1749937150877,0.90096131,105280.0,105270.0,0.29046]
[1749937151092,0.90764721,105280.0,105270.0,0.29046]
[1749937151498,0.90096131,105280.0,105270.0,0.29046]
[1749937151714,0.90764721,105280.0,105270.0,0.29046]
[1749937152138,0.90096131,105280.0,105270.0,0.29046]
[1749937152359,0.90764682,105280.0,105270.0,0.29046]
[1749937152788,1.1514976,105280.0,105270.0,0.29046]
[1749937153622,1.15149797,105280.0,105270.0,0.29046]
[1749937154435,0.54162076,105280.0,105270.0,0.29046]
[1749937154919,1.15149797,105280.0,105270.0,0.29046]
[1749937155562,1.14481209,105280.0,105270.0,0.29046]
[1749937155779,1.2476472,105280.0,105270.0,0.29046]
[1749937156195,1.24096131,105280.0,105270.0,0.29046]
[1749937156415,1.2676472,105280.0,105270.0,0.29046]
[1749937156624,1.26096131,105280.0,105270.0,0.29046]
[1749937156834,1.2676472,105280.0,105270.0,0.29046]
[1749937157054,1.26096131,105280.0,105270.0,0.29046]
[1749937157264,1.2676472,105280.0,105270.0,0.29046]
[1749937157500,1.26096131,105280.0,105270.0,0.29046]
[1749937157916,1.2676472,105280.0,105270.0,0.29046]
[1749937158594,1.26764719,105280.0,105270.0,0.29046]
[1749937158816,1.26096131,105280.0,105270.0,0.29046]
[1749937159539,1.26764719,105280.0,105270.0,0.29046]
[1749937160595,1.26096131,105280.0,105270.0,0.29046]
[1749937160793,1.26764719,105280.0,105270.0,0.29046]
[1749937161155,1.26096131,105280.0,105270.0,0.29046]
[1749937161681,1.26764719,105280.0,105270.0,0.29046]
[1749937162211,1.26096131,105280.0,105270.0,0.29046]
[1749937162416,1.26764719,105280.0,105270.0,0.29046]
[1749937162682,1.26096131,105280.0,105270.0,0.29046]
[1749937162893,1.26764719,105280.0,105270.0,0.29046]
[1749937163102,1.26096131,105280.0,105270.0,0.29046]
[1749937163479,1.26764719,105280.0,105270.0,0.29046]
[1749937164089,1.26096131,105280.0,105270.0,0.29046]
[1749937164290,1.26764719,105280.0,105270.0,0.29046]
[1749937165276,1.26764868,105280.0,105270.0,0.29046]
[1749937165725,1.26096131,105280.0,105270.0,0.29046]
[1749937165935,1.26764868,105280.0,105270.0,0.29046]
[1749937166218,1.26096131,105280.0,105270.0,0.29046]
[1749937166673,1.26764868,105280.0,105270.0,0.29046]
[1749937166874,1.26096131,105280.0,105270.0,0.29046]
[1749937167087,1.26764868,105280.0,105270.0,0.29046]
[1749937167290,1.26096131,105280.0,105270.0,0.29046]
[1749937167932,1.26764868,105280.0,105270.0,0.29046]
[1749937168446,1.26096131,105280.0,105270.0,0.29046]
[1749937168654,1.26764868,105280.0,105270.0,0.29046]
[1749937168862,1.26096131,105280.0,105270.0,0.29046]
[1749937169076,1.26764868,105280.0,105270.0,0.29046]
[1749937169297,1.26096131,105280.0,105270.0,0.29046]
[1749937169505,1.26764868,105280.0,105270.0,0.29046]
[1749937169758,1.26764868,105280.0,105270.0,0.29042]
[1749937170485,1.26096131,105280.0,105270.0,0.29042]
[1749937170948,1.26764869,105280.0,105270.0,0.29042]
[1749937171859,1.17149947,105280.0,105270.0,0.29042]
[1749937172082,1.16481209,105280.0,105270.0,0.29042]
[1749937172324,1.17149947,105280.0,105270.0,0.29042]
[1749937173840,1.16481209,105280.0,105270.0,0.29042]
[1749937174218,1.17149947,105280.0,105270.0,0.29042]
[1749937175060,1.16481209,105280.0,105270.0,0.29042]
[1749937175274,1.26764869,105280.0,105270.0,0.29042]
[1749937176342,1.26096131,105280.0,105270.0,0.29042]
[1749937176761,1.26764869,105280.0,105270.0,0.29042]
[1749937177601,1.26096131,105280.0,105270.0,0.29042]
[1749937177806,1.26764869,105280.0,105270.0,0.29042]
[1749937178008,1.26096131,105280.0,105270.0,0.29042]
[1749937178416,1.26764869,105280.0,105270.0,0.29042]
[1749937178629,1.17149947,105280.0,105270.0,0.29042]
[1749937178831,1.16481209,105280.0,105270.0,0.29042]
[1749937179034,1.1714995,105280.0,105270.0,0.29042]
[1749937179432,1.16481209,105280.0,105270.0,0.29042]
[1749937179637,1.17149951,105280.0,105270.0,0.29042]
[1749937179855,1.26764871,105280.0,105270.0,0.29042]
[1749937180068,1.26764865,105280.0,105270.0,0.29042]
[1749937180279,1.26096131,105280.0,105270.0,0.29042]
[1749937180702,1.26764865,105280.0,105270.0,0.29042]
[1749937180871,1.26096131,105280.0,105270.0,0.29042]
[1749937181079,1.26764865,105280.0,105270.0,0.29042]
[1749937181878,1.26096131,105280.0,105270.0,0.29042]
[1749937182062,1.26764865,105280.0,105270.0,0.29042]
[1749937182388,1.26096131,105280.0,105270.0,0.29042]
[1749937182585,1.26764865,105280.0,105270.0,0.29042]
[1749937183049,0.65777144,105280.0,105270.0,0.29042]
[1749937183256,1.26764865,105280.0,105270.0,0.29042]
[1749937183461,1.26096131,105280.0,105270.0,0.29042]
[1749937183664,1.26764865,105280.0,105270.0,0.29042]
[1749937184095,1.26096131,105280.0,105270.0,0.29042]
[1749937184313,1.26764865,105280.0,105270.0,0.29042]
[1749937184520,1.26096131,105280.0,105270.0,0.29042]
[1749937184739,1.26764865,105280.0,105270.0,0.29042]
[1749937184974,1.26096131,105280.0,105270.0,0.29042]
[1749937185194,1.26764865,105280.0,105270.0,0.29042]
[1749937185690,1.16481209,105280.0,105270.0,0.29042]
[1749937185905,1.17149943,105280.0,105270.0,0.29042]
[1749937186116,1.16481209,105280.0,105270.0,0.29042]
[1749937186330,1.17149943,105280.0,105270.0,0.29042]
[1749937186544,1.16481209,105280.0,105270.0,0.29042]
[1749937186736,1.17149943,105280.0,105270.0,0.29042]
[1749937187686,1.16481209,105280.0,105270.0,0.29042]
[1749937187921,1.17149943,105280.0,105270.0,0.29042]
[1749937188342,1.16481209,105280.0,105270.0,0.29042]
[1749937188559,1.17149943,105280.0,105270.0,0.29042]
[1749937188772,1.16481209,105280.0,105270.0,0.29042]
[1749937188995,1.17149942,105280.0,105270.0,0.29042]
[1749937189234,1.16481209,105280.0,105270.0,0.29042]
[1749937189664,1.17149943,105280.0,105270.0,0.29042]
[1749937190336,1.16481209,105280.0,105270.0,0.29042]
[1749937190542,1.17149943,105280.0,105270.0,0.29042]
[1749937191626,1.16481209,105280.0,105270.0,0.29042]
[1749937192314,1.17149943,105280.0,105270.0,0.29042]
[1749937192528,1.26764865,105280.0,105270.0,0.29042]
[1749937193240,1.26096131,105280.0,105270.0,0.29042]
[1749937193446,1.26764865,105280.0,105270.0,0.29042]
[1749937193660,1.17149943,105280.0,105270.0,0.29042]
[1749937193882,1.16481209,105280.0,105270.0,0.29042]
[1749937194758,1.17149943,105280.0,105270.0,0.29042]
[1749937195234,1.17149819,105280.0,105270.0,0.29042]
[1749937195438,1.16481209,105280.0,105270.0,0.29042]
[1749937195654,1.17149819,105280.0,105270.0,0.29042]
[1749937196199,1.16481209,105280.0,105270.0,0.29042]
[1749937196411,1.17149821,105280.0,105270.0,0.29042]
[1749937196622,1.16481209,105280.0,105270.0,0.29042]
[1749937196839,1.17149821,105280.0,105270.0,0.29042]
[1749937197277,1.16481209,105280.0,105270.0,0.29042]
[1749937197485,1.17149821,105280.0,105270.0,0.29042]
[1749937197809,1.16481209,105280.0,105270.0,0.29042]
[1749937198027,1.17149821,105280.0,105270.0,0.29042]
[1749937199261,1.17149822,105280.0,105270.0,0.29042]
[1749937199680,1.16481209,105280.0,105270.0,0.29042]
[1749937199887,1.26096131,105280.0,105270.0,0.29042]
[1749937200368,1.17401199,105280.0,105270.0,0.1088]
[1749937200567,1.68774019,105280.0,105270.0,0.29104]
[1749937200838,1.68774025,105280.0,105270.0,0.29104]
[1749937201032,1.68774017,105280.0,105270.0,0.29104]
[1749937201256,1.68774018,105280.0,105270.0,0.29104]
[1749937201471,1.78388935,105280.0,105270.0,0.29104]
[1749937201707,1.77720307,105280.0,105270.0,0.29104]
[1749937201927,1.78388947,105280.0,105270.0,0.29104]
[1749937202141,1.77720307,105280.0,105270.0,0.29104]
[1749937202358,1.78388947,105280.0,105270.0,0.29104]
[1749937202571,1.77720307,105280.0,105270.0,0.29104]
[1749937203008,1.78388947,105280.0,105270.0,0.29104]
[1749937203223,1.78388944,105280.0,105270.0,0.29104]
[1749937203666,1.78388943,105280.0,105270.0,0.29104]
[1749937204361,1.77720307,105280.0,105270.0,0.29104]
[1749937204574,1.68774151,105280.0,105270.0,0.29104]
[1749937205045,1.68105385,105280.0,105270.0,0.29104]
[1749937205258,1.68774151,105280.0,105270.0,0.29104]
[1749937205914,1.68105385,105280.0,105270.0,0.29104]
[1749937206125,1.68774151,105280.0,105270.0,0.29104]
[1749937207025,1.78389066,105280.0,105270.0,0.29104]
[1749937207233,1.78389072,105280.0,105270.0,0.29104]
[1749937207461,1.7838907,105280.0,105270.0,0.29104]
[1749937207669,1.78389069,105280.0,105270.0,0.29104]
[1749937207877,1.78389067,105280.0,105270.0,0.29104]
[1749937208103,1.77720307,105280.0,105270.0,0.29104]
[1749937208319,1.78389067,105280.0,105270.0,0.29104]
[1749937208592,1.78389068,105280.0,105270.0,0.29104]
[1749937208812,1.78389067,105280.0,105270.0,0.29104]
[1749937209243,1.77720307,105280.0,105270.0,0.29104]
[1749937209465,1.68105385,105280.0,105270.0,0.29104]
[1749937210098,1.68774146,105280.0,105270.0,0.29104]
[1749937210533,1.68774142,105280.0,105270.0,0.29104]
[1749937210959,1.68774145,105280.0,105270.0,0.29104]
[1749937211499,1.68774151,105280.0,105270.0,0.29104]
[1749937211762,1.07786431,105280.0,105270.0,0.29104]
[1749937212018,0.60115087,105280.0,105270.0,0.48102765]
[1749937212273,1.23952231,105280.0,105270.0,0.56641499]
[1749937212510,1.42280436,105280.0,105270.0,0.50002596]
[1749937212974,1.41999422,105280.0,105270.0,0.50002596]
[1749937213436,1.41999428,105280.0,105270.0,0.50002596]
[1749937213904,1.41999422,105280.0,105270.0,0.50002596]
[1749937214137,1.41999427,105280.0,105270.0,0.50002596]
[1749937215008,1.4133067,105280.0,105270.0,0.50002596]
[1749937215231,1.41999421,105280.0,105270.0,0.50002596]
[1749937215488,1.41999426,105280.0,105270.0,0.50002596]
[1749937215723,1.41999413,105280.0,105270.0,0.50002596]
[1749937215939,1.40099791,105280.0,105270.0,0.49052694]
[1749937216406,1.40099792,105280.0,105270.0,0.50002605]
[1749937216635,1.39431057,105280.0,105270.0,0.50002605]
[1749937216869,1.40099792,105280.0,105270.0,0.50002605]
[1749937217582,1.39431057,105280.0,105270.0,0.50002605]
[1749937218025,1.40099787,105280.0,105270.0,0.50002605]
[1749937218261,1.39431057,105280.0,105270.0,0.50002605]
[1749937219182,1.40099788,105280.0,105270.0,0.50002605]
[1749937219396,1.38934529,105280.0,105270.0,0.50002605]
[1749937219819,1.3960326,105280.0,105270.0,0.50002605]
[1749937220042,1.38934529,105280.0,105270.0,0.50002605]
[1749937220258,1.39603259,105280.0,105270.0,0.50002605]
[1749937220473,1.39603262,105280.0,105270.0,0.50002605]
[1749937220691,1.39603261,105280.0,105270.0,0.50002605]
[1749937220933,1.38934529,105280.0,105270.0,0.50002605]
[1749937221152,1.39603261,105280.0,105270.0,0.50002605]
[1749937221370,1.38934529,105280.0,105270.0,0.50002605]
[1749937221582,1.39603261,105280.0,105270.0,0.50002605]
[1749937222229,1.39603257,105280.0,105270.0,0.50002605]
[1749937222662,1.38934529,105280.0,105270.0,0.50002605]
[1749937223089,1.39603256,105280.0,105270.0,0.50002605]
[1749937223347,1.39603253,105280.0,105270.0,0.50002605]
[1749937224151,1.39603254,105280.0,105270.0,0.50002605]
[1749937224384,1.39431057,105280.0,105270.0,0.50002605]
[1749937224622,1.40099783,105280.0,105270.0,0.50002605]
[1749937224845,1.39431057,105280.0,105270.0,0.50002605]
[1749937225299,1.40099781,105280.0,105270.0,0.50002605]
[1749937225521,1.49714703,105280.0,105270.0,0.50002605]
[1749937225731,1.40099781,105280.0,105270.0,0.50002605]
[1749937225955,1.40099783,105280.0,105270.0,0.50002605]
[1749937226369,1.40099783,105280.0,105270.0,0.49052694]
[1749937226582,1.39149936,105280.0,105270.0,0.49052694]
[1749937226797,1.48764859,105280.0,105270.0,0.49052694]
[1749937227005,1.48764857,105280.0,105270.0,0.49052694]
[1749937227218,1.48764859,105280.0,105270.0,0.49052694]
[1749937227426,1.48096131,105280.0,105270.0,0.49052694]
[1749937227857,1.48764859,105280.0,105270.0,0.49052694]
[1749937228706,0.78162216,105280.0,105270.0,0.49052694]
[1749937228927,1.39149938,105280.0,105270.0,0.50002605]
[1749937229134,1.39149936,105280.0,105270.0,0.49052694]
[1749937229562,0.78162216,105280.0,105270.0,0.49052694]
[1749937229784,1.39149937,105280.0,105270.0,0.49052694]
[1749937230000,1.38481209,105280.0,105270.0,0.49052694]
[1749937230260,1.39149928,105280.0,105270.0,0.49052694]
[1749937230477,1.4876485,105280.0,105270.0,0.49052694]
[1749937230693,1.48764851,105280.0,105270.0,0.49052694]
[1749937231328,1.48096131,105280.0,105270.0,0.49052694]
[1749937231592,1.48764849,105280.0,105270.0,0.49052694]
[1749937231803,1.48096131,105280.0,105270.0,0.49052694]
[1749937232008,1.48764849,105280.0,105270.0,0.49052694]
[1749937232441,1.48096131,105280.0,105270.0,0.49052694]
[1749937232854,1.48764852,105280.0,105270.0,0.49052694]
[1749937233054,1.48096131,105280.0,105270.0,0.49052694]
[1749937233257,1.4876485,105280.0,105270.0,0.49052694]
[1749937233463,1.48764852,105280.0,105270.0,0.49052694]
[1749937233691,1.48764852,105280.0,105270.0,0.50002614]
[1749937234120,1.48096131,105280.0,105270.0,0.50002614]
[1749937234550,1.4876485,105280.0,105270.0,0.50002614]
[1749937234768,1.48764852,105280.0,105270.0,0.50002614]
[1749937234981,1.48096131,105280.0,105270.0,0.50002614]
[1749937235186,1.4876486,105280.0,105270.0,0.50002614]
[1749937235616,1.48096131,105280.0,105270.0,0.50002614]
[1749937235818,1.4876486,105280.0,105270.0,0.50002614]
[1749937236245,1.48764859,105280.0,105270.0,0.50002614]
[1749937236445,1.4904596,105280.0,105270.0,0.50952516]
[1749937236665,1.40099766,105280.0,105270.0,0.50952516]
[1749937237490,1.40099766,105280.0,105270.0,0.50002614]
[1749937237676,1.39431038,105280.0,105270.0,0.50002614]
[1749937238301,1.40099766,105280.0,105270.0,0.50002614]
[1749937238648,1.39431038,105280.0,105270.0,0.50952525]
[1749937239055,1.40099766,105280.0,105270.0,0.50002614]
[1749937239678,1.40099766,105280.0,105270.0,0.50952525]
[1749937240348,1.39431038,105280.0,105270.0,0.50952525]
[1749937240537,1.40099766,105280.0,105270.0,0.50952525]
[1749937241277,1.39431038,105280.0,105270.0,0.50952525]
[1749937241903,1.40099766,105280.0,105270.0,0.50952525]
[1749937243197,1.39431038,105280.0,105270.0,0.50952525]
[1749937243416,1.40099765,105280.0,105270.0,0.50952525]
[1749937243860,1.39431038,105280.0,105270.0,0.50952525]
[1749937244356,1.40099765,105280.0,105270.0,0.50952525]
[1749937244550,1.49714687,105280.0,105270.0,0.50952525]
[1749937245090,1.4904596,105280.0,105270.0,0.50952525]
[1749937245291,1.49714687,105280.0,105270.0,0.50952525]
[1749937245665,1.4904596,105280.0,105270.0,0.50952525]
[1749937246379,1.49714687,105280.0,105270.0,0.50952525]
[1749937246802,1.49714656,105280.0,105270.0,0.50952525]
[1749937247656,1.48764827,105280.0,105270.0,0.50002614]
[1749937247880,1.48096131,105280.0,105270.0,0.50002614]
[1749937248081,1.48764827,105280.0,105270.0,0.50002614]
[1749937248529,1.48096131,105280.0,105270.0,0.50002614]
[1749937248919,1.48764827,105280.0,105270.0,0.50002614]
[1749937249357,1.48096131,105280.0,105270.0,0.50002614]
[1749937249539,1.48764827,105280.0,105270.0,0.50002614]
[1749937250134,1.48096131,105280.0,105270.0,0.50002614]
[1749937250338,1.48764827,105280.0,105270.0,0.50002614]
[1749937251026,1.48764827,105280.0,105270.0,0.49052694]
[1749937251233,1.48764828,105280.0,105270.0,0.49052694]
[1749937251458,1.48096131,105280.0,105270.0,0.49052694]
[1749937251873,1.48764827,105280.0,105270.0,0.49052694]
[1749937252075,1.38481209,105280.0,105270.0,0.49052694]
[1749937252285,1.39149905,105280.0,105270.0,0.49052694]
[1749937252493,1.38481209,105280.0,105270.0,0.49052694]
[1749937252707,1.39149905,105280.0,105270.0,0.49052694]
[1749937253513,1.38481209,105280.0,105270.0,0.49052694]
[1749937253721,1.39149904,105280.0,105270.0,0.49052694]
[1749937253906,1.38456039,105280.0,105270.0,0.49052694]
[1749937254313,1.39124734,105280.0,105270.0,0.49052694]
[1749937254531,1.38456039,105280.0,105270.0,0.49052694]
[1749937254737,1.39124733,105280.0,105270.0,0.49052694]
[1749937254934,1.38456039,105280.0,105270.0,0.49052694]
[1749937255349,1.39124733,105280.0,105270.0,0.49052694]
[1749937256329,1.39124733,105280.0,105270.0,0.50002614]
[1749937256562,1.39124765,105280.0,105270.0,0.50002614]
[1749937256766,1.39124763,105280.0,105270.0,0.50002614]
[1749937256976,1.39124764,105280.0,105270.0,0.50952525]
[1749937257588,1.39124763,105280.0,105270.0,0.50952525]
[1749937259113,1.38456039,105280.0,105270.0,0.50952525]
[1749937259317,1.39124763,105280.0,105270.0,0.50952525]
[1749937259817,1.38456039,105280.0,105270.0,0.50952525]
[1749937260022,1.20127803,105280.0,105270.0,0.51902427]
[1749937260230,1.00027391,105280.0,105270.0,0.52852302]
[1749937260368,1.00027389,105280.0,105270.0,0.52852302]
[1749937260579,1.00027384,105280.0,105270.0,0.52852302]
[1749937260815,0.37421142,105280.0,105270.0,0.52852302]
[1749937261006,0.37421151,105280.0,105270.0,0.52852302]
[1749937261352,0.00496528,105280.0,105270.0,0.62467224]
[1749937261560,0.00496528,105280.0,105270.0,0.720914]
[1749937261775,0.00496528,105280.0,105270.0,1.35917164]
[1749937262691,0.78819441,105290.0,105280.0,0.27286394]
[1749937262907,0.78819441,105290.0,105280.0,0.97898291]
[1749937263128,0.78819441,105290.0,105280.0,1.06225818]
[1749937263568,0.78819441,105290.0,105280.0,0.97898291]
[1749937264339,0.78819441,105290.0,105280.0,0.3691057]
[1749937264557,0.78819441,105290.0,105280.0,0.97898291]
[1749937265400,0.78819441,105290.0,105280.0,0.97998291]
[1749937265951,0.78819441,105290.0,105280.0,0.98298291]
[1749937266163,0.78819441,105290.0,105280.0,1.07913213]
[1749937266364,0.78819441,105290.0,105280.0,1.08013213]
[1749937266767,0.78819441,105290.0,105280.0,1.10851256]
[1749937267087,0.78819441,105290.0,105280.0,1.1463471]
[1749937267265,0.76099441,105290.0,105280.0,1.10851256]
[1749937267885,0.76099441,105290.0,105280.0,1.1463471]
[1749937268092,0.76099441,105290.0,105280.0,1.11796667]
[1749937268326,0.76099441,105290.0,105280.0,1.14620448]
[1749937268737,0.76099441,105290.0,105280.0,1.14220448]
[1749937269143,0.76099441,105290.0,105280.0,1.10436994]
[1749937269777,0.76099441,105290.0,105280.0,1.10336994]
[1749937269979,0.76099441,105290.0,105280.0,1.10736994]
[1749937270300,0.76099441,105290.0,105280.0,1.12191079]
[1749937270711,0.76099441,105290.0,105280.0,1.12891079]
[1749937271168,0.73199441,105290.0,105280.0,1.46891079]
[1749937273984,0.73199441,105290.0,105280.0,1.74275079]
[1749937275192,0.73199441,105290.0,105280.0,1.89803079]
[1749937278720,0.73199441,105290.0,105280.0,1.93831079]
[1749937279140,0.73199441,105290.0,105280.0,2.23321079]
[1749937281165,0.73199441,105290.0,105280.0,2.27104533]
[1749937281584,0.73199441,105290.0,105280.0,2.88092254]
[1749937281816,0.73199441,105290.0,105280.0,2.90268473]
[1749937282024,0.73199441,105290.0,105280.0,3.00943194]
[1749937282233,0.73199441,105290.0,105280.0,3.0001364]
[1749937285099,0.21560543,105290.0,105280.0,2.98094161]
[1749937285325,0.21560543,105290.0,105280.0,3.0001364]
[1749937285737,0.21560543,105290.0,105280.0,2.9961364]
[1749937286356,0.21560543,105290.0,105280.0,2.9941364]
[1749937286585,0.21560543,105290.0,105280.0,2.9951364]
[1749937287785,4.743e-05,105310.0,105300.0,0.31842245]
[1749937288008,4.743e-05,105310.0,105300.0,1.99538541]
[1749937288216,4.743e-05,105310.0,105300.0,0.77563099]
[1749937288431,4.743e-05,105310.0,105300.0,1.99538541]
[1749937290145,4.743e-05,105310.0,105300.0,2.27114541]
[1749937292624,4.743e-05,105310.0,105300.0,0.42911099]
[1749937292838,0.05574743,105310.0,105300.0,0.88127572]
[1749937293043,0.05574743,105310.0,105300.0,1.49115293]
[1749937293455,0.05574743,105310.0,105300.0,1.30778142]
[1749937293669,0.05574743,105310.0,105300.0,0.65766421]
[1749937294078,0.66562464,105310.0,105300.0,0.85310421]
[1749937294294,0.66562464,105310.0,105300.0,0.69790421]
[1749937294495,0.05574743,105310.0,105300.0,0.85310421]
[1749937295149,0.05574743,105310.0,105300.0,0.88127572]
[1749937297398,0.05574743,105310.0,105300.0,0.54127572]
[1749937299342,0.54158196,105320.0,105310.0,0.21840171]
[1749937299343,0.3695377,105320.0,105310.0,0.21840171]
[1749937299597,0.3695377,105320.0,105310.0,0.47031847]
[1749937300945,0.37844873,105320.0,105310.0,0.47031847]
[1749937301357,0.37844874,105320.0,105310.0,0.47031847]
[1749937301579,0.37844873,105320.0,105310.0,0.47031847]
[1749937301778,0.37844875,105320.0,105310.0,0.47031847]
[1749937301993,0.37844876,105320.0,105310.0,0.47031847]
[1749937302222,0.4256377,105320.0,105310.0,0.47031847]
[1749937302460,0.4256377,105320.0,105310.0,0.47131847]
[1749937303885,0.4256377,105320.0,105310.0,0.51155847]
[1749937304726,0.0561,105320.0,105310.0,0.51155847]
[1749937304940,0.59768196,105320.0,105310.0,0.51155847]
[1749937307653,0.6707416,105320.0,105310.0,0.51159847]
[1749937307886,0.60717602,105320.0,105310.0,0.51159847]
[1749937308724,0.60717602,105320.0,105310.0,0.31611847]
[1749937308725,0.62557154,105320.0,105310.0,0.31611847]
[1749937308933,0.62557154,105320.0,105310.0,0.51159847]
[1749937309140,0.62557146,105320.0,105310.0,0.51159847]
[1749937309344,0.62616468,105320.0,105310.0,0.41535671]
[1749937309553,0.7085016,105320.0,105310.0,0.20088616]
[1749937309772,0.73698563,105320.0,105310.0,0.26015707]
[1749937309981,0.73640251,105320.0,105310.0,0.42485221]
[1749937310198,0.73640252,105320.0,105310.0,0.42485221]
[1749937310389,0.71857952,105320.0,105310.0,0.42485221]
[1749937310594,0.65289948,105320.0,105310.0,0.42485221]
[1749937310767,0.63507639,105320.0,105310.0,0.42485221]
[1749937310971,0.64398789,105320.0,105310.0,0.42485221]
[1749937311174,0.62616477,105320.0,105310.0,0.26965221]
[1749937311510,0.65289967,105320.0,105310.0,0.42485221]
[1749937311698,0.63507634,105320.0,105310.0,0.22937221]
[1749937312017,0.62616477,105320.0,105310.0,0.42485221]
[1749937312223,0.6350764,105320.0,105310.0,0.42485221]
[1749937312431,0.65289965,105320.0,105310.0,0.42485221]
[1749937312645,0.62616477,105320.0,105310.0,0.42485221]
[1749937312895,0.64398814,105320.0,105310.0,0.42485221]
[1749937313106,0.63507645,105320.0,105310.0,0.42485221]
[1749937313308,0.65289979,105320.0,105310.0,0.42485221]
[1749937313521,0.65289966,105320.0,105310.0,0.42485221]
[1749937313732,0.65289964,105320.0,105310.0,0.42485221]
[1749937313936,0.64398793,105320.0,105310.0,0.42485221]
[1749937314257,0.65289955,105320.0,105310.0,0.42485221]
[1749937314983,0.6350763,105320.0,105310.0,0.42485221]
[1749937315231,0.65289976,105320.0,105310.0,0.42485221]
[1749937315470,0.62616468,105320.0,105310.0,0.42485221]
[1749937315677,0.65289955,105320.0,105310.0,0.42485221]
[1749937315896,0.62558188,105320.0,105310.0,0.42485221]
[1749937316139,0.64340513,105320.0,105310.0,0.42485221]
[1749937316928,0.62558189,105320.0,105310.0,0.42485221]
[1749937317144,0.64340516,105320.0,105310.0,0.42485221]
[1749937317356,0.69340115,105320.0,105310.0,0.42485221]
[1749937317511,0.71122442,105320.0,105310.0,0.42485221]
[1749937317709,0.0750883,105320.0,105310.0,0.42485221]